Cogmind - Beta 13 *** ADVENTURER MODE // 2024.07.13 @ 08:16:17 Player: UnifiBg Result: Destroyed by KP-5DW(R) with Subdweller Machine Gun Performance ------------- Evolutions (0) 0 Regions Visited (2) 400 Robots Destroyed (36) 180 Value Destroyed (742) 742 Prototype IDs (0) 0 Alien Tech Used (0) 0 Bonus (0) 0 TOTAL SCORE: 1322 Bonus ------- None Cogmind --------- Core Integrity 0/250 Matter 284/300 Energy 250/250 System Corruption 1% Temperature Cool (0) Movement Rolling (110) Location -10/Subcaves Parts ------- > --- POWER (1) -------- Ion Engine > --- PROPULSION (2) --- Subdweller Monowheel Subdweller Monowheel > --- UTILITY (2) ------ Small Storage Unit Sensor Array > --- WEAPON (2) ------- Heavy Battle Rifle Makeshift Hammer > --- INVENTORY (8) ---- Subdweller Optics Subdweller Optics Seismic Detector Battle Rifle Battle Rifle Subdweller Machine Gun Improved Light Cannon Improved Light Cannon Peak State ------------ > --- POWER ------------ Ion Engine > --- PROPULSION ------- Subdweller Monowheel Subdweller Monowheel > --- UTILITY ---------- Small Storage Unit Sensor Array > --- WEAPON ----------- Heavy Battle Rifle Makeshift Hammer > --- INVENTORY -------- Subdweller Optics Subdweller Optics Seismic Detector Battle Rifle Battle Rifle Subdweller Machine Gun Improved Light Cannon Improved Light Cannon [Rating: 16] Favorites ----------- Power Ion Engine Engine Ion Engine Propulsion Wheel Wheel Wheel Utility Small Storage Unit Device Sensor Array Storage Small Storage Unit Weapon Improved Light Cannon Energy Gun Small Laser Ballistic Gun Light Assault Rifle Ballistic Cannon Improved Light Cannon Launcher Grenade Launcher Impact Weapon Mace Build | -11 -10 -10 ------- Run | Yrd Mat Sub Slots Evolved . | . . . Power . | . . . Propulsion . | . . . Utility . | . . . Weapon . | . . . Parts Attached 39 | 9 12 18 Power 6 | 1 3 2 Engine 6 | 1 3 2 Core . | . . . Reactor . | . . . Propulsion 9 | 3 2 4 Treads . | . . . Leg . | . . . Wheel 9 | 3 2 4 Hover . | . . . Flight . | . . . Utility 7 | 3 3 1 Device 5 | 2 2 1 Storage 2 | 1 1 . Processor . | . . . Hackware . | . . . Protection . | . . . Artifact . | . . . Weapon 17 | 2 4 11 Energy Gun 3 | 2 1 . Energy Cannon . | . . . Ballistic Gun 4 | . 1 3 Ballistic Cannon 3 | . 2 1 Launcher 2 | . . 2 Special Weapon . | . . . Impact Weapon 5 | . . 5 Slashing Weapon . | . . . Piercing Weapon . | . . . Special Melee Weapon . | . . . Unidentified Prototypes . | . . . Parts Lost 7 | . 2 5 Power . | . . . Propulsion 5 | . 1 4 Utility 1 | . 1 . Weapon 1 | . . 1 Highest Loss Streak 2 | . 1 2 To Critical Strikes . | . . . Average Slot Usage (%) 95 | . 99 90 Engine 14 | . 14 14 Wheel 23 | . 27 18 Device 13 | . 13 13 Storage 14 | . 14 14 Energy Gun 6 | . 11 . Ballistic Gun 7 | . 6 7 Ballistic Cannon 8 | . 9 7 Launcher 2 | . . 5 Impact Weapon 3 | . . 7 Naked Turns . | . . . Heaviest Build 19 | 14 16 19 Greatest Support 40 | 26 20 40 Greatest Overweight (x) 6 | . 1 6 Average Overweight (x) . | . . . Largest Inventory Capacity 8 | 8 8 8 Average Capacity 7 | 7 8 8 Most Carried 8 | 8 8 8 Average Carried 7 | 5 7 7 Final Capacity 8 | 8 8 8 Final Carried 8 | 8 8 8 Class Distribution -------------------- 52% | Mutant 47% | Scavenger-Mutant Dominant Class ---------------- Mutant | -10/Materials Scavenger-Mutant | -10/Subcaves Resources | -11 -10 -10 ----------- Run | Yrd Mat Sub Matter Collected 991 | 290 344 357 Remotely . | . . . Salvage Created 961 | 208 541 212 Parts 72 | 22 34 16 Haulers Intercepted 2 | . 2 . Recyclers Shooed 1 | 1 . . Parts Field Recycled . | . . . Retrieved Matter . | . . . Parts Self-Destructed 21 | . . 21 Prevented . | . . . Kills | -11 -10 -10 ------- Run | Yrd Mat Sub Combat Hostiles Destroyed 20 | . 11 9 Guns 10 | . 6 4 Cannons 9 | . 5 4 AOE 1 | . . 1 Classes Destroyed 9 | 3 4 2 Worker 3 | 2 1 . Tunneler 6 | 6 . . Hauler 2 | . 2 . Recycler 2 | 1 1 . Watcher 3 | . 3 . Swarmer 5 | . 3 2 Grunt 8 | . 8 . Sentry 1 | . . 1 Subdweller 6 | . . 6 Best Kill Streak 3 | 3 3 2 Combat Bots Only 3 | . 3 2 Max Kills in Single Turn 2 | 1 1 2 Gunslinging . | . . . Exploded 1 | . . 1 Melee . | . . . Uniques/NPCs Destroyed . | . . . Combat | -11 -10 -10 -------- Run | Yrd Mat Sub Hostile Shots Fired 135 | . 62 73 Missed 50 | . 14 36 Damage Taken 1066 | . 436 630 Core 257 | . 96 161 Absorbed by Shields . | . . . Ignored by Resistances 307 | . 143 164 Core Remaining (%) 100 | 100 . . Volleys Fired 129 | 37 59 33 Largest 2 | 2 2 2 Hottest 80 | 80 80 72 Shots Fired 214 | 48 116 50 Gun 139 | 48 65 26 Cannon 69 | . 51 18 Launcher 6 | . . 6 Special . | . . . Kinetic 125 | . 81 44 Thermal 67 | 37 30 . Explosive 6 | . . 6 Electromagnetic 16 | 11 5 . Robot Hit Streak 22 | 6 22 19 Robot Miss Streak 5 | 1 5 2 Penetration Max . | . . . Secondary Targets . | . . . Shots Hit Robots 160 | 37 89 34 Core Hits 58 | 10 32 16 Critical Kills . | . . . Critical Parts Destroyed . | . . . Critical Strikes 2 | . 1 1 Blast 2 | . 1 1 Melee Attacks 12 | . . 12 Impact 12 | . . 12 Slashing . | . . . Piercing . | . . . Sneak Attacks . | . . . Combat Hostiles . | . . . Follow-up Attacks . | . . . Damage Inflicted 2507 | 432 1186 889 Guns 1374 | 432 525 417 Cannons 939 | . 661 278 Explosions 194 | . . 194 Melee . | . . . Ramming . | . . . Kinetic 1550 | . 855 695 Thermal 579 | 312 267 . Explosive 194 | . . 194 Electromagnetic 184 | 120 64 . Impact . | . . . Slashing . | . . . Piercing . | . . . Highest Corruption 1 | . 1 1 Average Corruption 1 | . 1 1 Corruption Purged . | . . . Corruption Blocked . | . . . Effects 13 | . 5 8 Message Errors 7 | . 3 4 Matter Fused 1 | . . 1 Heat Flow Errors 1 | . . 1 Data Loss (minor) 3 | . 1 2 Data Loss (major) 1 | . 1 . Overload Shots . | . . . Overflow Damage 6 | . 6 . Projectiles 6 | . 6 . Explosions . | . . . Melee . | . . . Knockbacks 5 | . 5 . Impact . | . . . Kinetic 5 | . 5 . Secondary . | . . . Self-Inflicted Damage . | . . . Shots . | . . . Rammed . | . . . Targets Rammed . | . . . Kicked . | . . . Crushed . | . . . Highest Temperature 135 | 124 135 87 Average Temperature 45 | 60 42 47 Received Heat Transfer 393 | . 213 180 Siege Activations . | . . . Robots Corrupted . | . . . Combat Hostiles . | . . . Parts Fried 1 | 1 . . Impact Corruptions . | . . . Robots Melted . | . . . Combat Hostiles . | . . . Parts Melted . | . . . Heat Transferred 1300 | 700 600 . Parts Sabotaged . | . . . Parts Stolen . | . . . Parts Stripped . | . . . Power Chain Reactions . | . . . Alert | -11 -10 -10 ------- Run | Yrd Mat Sub Peak Influence 229 | 45 229 . Initial 25 | . 25 . Average 87 | 20 96 . Maximum Alert Level 1 | . 1 . Low Security (%) 85 | 100 82 . Level 1 14 | . 17 . Level 2 . | . . . Level 3 . | . . . Level 4 . | . . . Level 5 . | . . . High Security . | . . . Max Security . | . . . Squads Dispatched 2 | . 2 . Investigation 2 | . 2 . Extermination . | . . . Reinforcement . | . . . Assault . | . . . Garrison . | . . . Intercept . | . . . Searches Triggered . | . . . Construction Impeded . | . . . Haulers Reinforced . | . . . Active Scanning Responses . | . . . Cargo Convoy Interrupts . | . . . Stealth | -11 -10 -10 --------- Run | Yrd Mat Sub Distress Signals . | . . . Communications Jammed . | . . . Distress Signals . | . . . Times Spotted 60 | . 28 32 Peak Tracking Total 4 | . 4 4 Tactical Retreats 8 | . 5 3 Traps | -11 -10 -10 ------- Run | Yrd Mat Sub Traps Triggered 5 | . 3 2 Indirectly . | . . . Trap Hack Attempts . | . . . Triggered . | . . . Disarmed . | . . . Reprogrammed . | . . . Reused . | . . . Traps Extracted . | . . . Installed . | . . . Triggered . | . . . Machines | -11 -10 -10 ---------- Run | Yrd Mat Sub Machines Disabled . | . . . Max in Single Turn . | . . . Machines Repaired . | . . . Machines Dismantled . | . . . Machines Sabotaged . | . . . Overloaded Fab Kills . | . . . Hacking | -11 -10 -10 --------- Run | Yrd Mat Sub Machines Accessed 9 | . 8 1 Terminals 6 | . 6 . Fabricators . | . . . Repair Stations . | . . . Recycling Units 2 | . 2 . Scanalyzers . | . . . Garrison Access . | . . . Total Hacks 26 | . 24 2 Successful 16 | . 14 2 Failed 10 | . 10 . Catastrophic . | . . . Database Lockouts . | . . . Manual 23 | . 23 . Terminals 21 | . 21 . Fabricators . | . . . Repair Stations . | . . . Recycling Units 3 | . 3 . Scanalyzers . | . . . Garrison Access . | . . . Terminal Hacks 7 | . 5 2 Record 2 | . . 2 Unreport Threat 1 | . 1 . Transport Status 1 | . 1 . Investigation Status 1 | . 1 . Zone Layout 2 | . 2 . Fabricator Hacks . | . . . Repair Station Hacks . | . . . Recycling Unit Hacks 2 | . 2 . Retrieve Components 2 | . 2 . Scanalyzer . | . . . Garrison Access Hacks . | . . . Unauthorized Hacks 7 | . 7 . Terminals 6 | . 6 . Botnet 6 | . 6 . Fabricators . | . . . Repair Stations . | . . . Recycling Units 1 | . 1 . Reject 1 | . 1 . Scanalyzers . | . . . Garrison Access . | . . . Data Cores Recovered . | . . . Used . | . . . Hacking Detections 7 | . 7 . Full Trace Events 2 | . 2 . Feedback Events . | . . . Feedback Blocked . | . . . Robot Schematics Acquired . | . . . Robots Built . | . . . Authchips . | . . . Time . | . . . Total Robot Build Rating . | . . . Part Schematics Acquired . | . . . Parts Built . | . . . Authchips . | . . . Time . | . . . Total Part Build Rating . | . . . Parts Repaired . | . . . Time . | . . . Parts Recycled . | . . . Recycled Matter . | . . . Retrieved Matter . | . . . Retrieved Components 16 | . 16 . Parts Scanalyzed . | . . . Part Schematics Acquired . | . . . Parts Damaged . | . . . Bothacking | -11 -10 -10 ------------ Run | Yrd Mat Sub Used RIF Installer . | . . . Robots Hacked . | . . . Non-combat . | . . . Combat . | . . . Robot Hacks Applied . | . . . Relay Couplers Released . | . . . Fabnet Peak Effective % . | . . . Robots Rewired . | . . . Allies Hacked . | . . . Hacks Repelled . | . . . Allies | -11 -10 -10 -------- Run | Yrd Mat Sub Total Allies . | . . . Largest Group . | . . . Highest-Rated Group . | . . . Highest-Rated Ally . | . . . Total Orders . | . . . Ally Attacks . | . . . Total Damage . | . . . Kills . | . . . Allies Corrupted . | . . . Allies Melted . | . . . Intel | -11 -10 -10 ------- Run | Yrd Mat Sub Robot Analysis Total . | . . . Derelict Logs Recovered 2 | . . 2 Drone Launches . | . . . Drone Recoveries . | . . . Exploration | -11 -10 -10 ------------- Run | Yrd Mat Sub Turns Passed 3211 | 236 1603 1372 Spaces Moved 2792 | 149 1514 1129 Core 70 | 3 . 67 Treads . | . . . Legs . | . . . Wheels 2722 | 146 1514 1062 Hover . | . . . Flight . | . . . Fastest Speed 50 | 50 80 80 Average Speed 90 | 82 80 106 Slowest Speed 350 | 100 95 350 Overloaded Moves . | . . . Propulsion Burnouts . | . . . Robots Hopped . | . . . Cave-ins Triggered . | . . . Exploration Rate (%) 56 | 5 100 64 Regions Visited 2 Branch Regions 1 Pre-discovered Areas . | . . . Known Exits Taken . | . . . Unknown Exits Taken 2 | 1 1 . Scrap Searched 5 | . . 5 Spaces Dug 7 | . . 7 Terrain Destroyed 33 | . . 33 Melee . | . . . Projectile 1 | . . 1 AOE 32 | . . 32 Terrain Rammed . | . . . Walls Destroyed . | . . . Machines Disabled . | . . . Actions | -11 -10 -10 --------- Run | Yrd Mat Sub Total 3245 | 212 1800 1233 Wait 222 | 2 190 30 Move 2790 | 148 1513 1129 Hop . | . . . Pick Up 25 | 11 9 5 Fast Attach 13 | 8 4 1 Attach 8 | . 2 6 Detach . | . . . Swap 18 | 1 6 11 Drop 28 | 5 17 6 Fire 129 | 37 59 33 Melee 12 | . . 12 Ram . | . . . Kick . | . . . Crush . | . . . Escape Stasis . | . . . Rewire . | . . . Trap . | . . . Miscellaneous . | . . . Route ------- -11/Scrapyard -10/Materials (discovered 6 exits: [*Mat x3] / [*Min x2] / *Sub) -10/Subcaves (discovered 2 exits: [*Mat x2]) History --------- Turn | Location | Event 16 | -11/Scrapyard | Discovered new exit (range 14) 237 | -11/Scrapyard | Entered Materials 296 | -10/Materials | Discovered new exit (range 16) 305 | -10/Materials | Build established: Mutant 338 | -10/Materials | Discovered new exit (range 14) 769 | -10/Materials | Discovered new exit (range 10) 1102 | -10/Materials | Discovered new exit (range 14) 1281 | -10/Materials | Discovered new exit (range 11) 1355 | -10/Materials | Build established: Scavenger-Mutant 1835 | -10/Materials | Discovered new exit (range 7) 1840 | -10/Materials | Entered Subcaves 1846 | -10/Subcaves | Shifting Twisted Machinery released Battle Rifle 1867 | -10/Subcaves | Shifting Twisted Machinery released Scrap Shield 1900 | -10/Subcaves | A swath of the cavern ceiling suddenly collapsed 1980 | -10/Subcaves | Shifting Twisted Machinery released Flamer 1980 | -10/Subcaves | Shifting Twisted Machinery released Sub. Optics 2069 | -10/Subcaves | Visited Clippyterm 2392 | -10/Subcaves | Discovered new exit (range 8) 2468 | -10/Subcaves | Disturbed a concealed Subdweller 2471 | -10/Subcaves | Ambushed by Subdweller buried in earth 2478 | -10/Subcaves | Core integrity fell below 50% 2555 | -10/Subcaves | Ambushed by Subdwellers from Twisted Machinery 2627 | -10/Subcaves | Discovered new exit (range 7) 2753 | -10/Subcaves | Build established: Mutant 2945 | -10/Subcaves | Core integrity fell below 20% 3147 | -10/Subcaves | Learned Materials stockpile data 3167 | -10/Subcaves | Learned Materials stockpile data 3212 | -10/Subcaves | Destroyed by KP-5DW(R) with Subdweller Machine Gun Last Messages --------------- 03056_ LD-FTI(R) destroyed. 03059_ Acquired 7 matter. 03061_ Acquired Sub. Monowheel. 03063_ Acquired 10 matter. 03068_ Acquired Sub. Machine Gun. 03100_ Subatomizers dissect the Broken Sub. Power Source. 03105_ NZ-HLO(R) destroyed. 03109_ Acquired 34 matter. 03115_ Subatomizers dissect the Broken Sub. Power Source. 03118_ Acquired 2 matter. 03120_ Acquired 6 matter. 03147_ Acquired derelict log, extracted data. Data stored: Materials stockpile data. 03167_ Acquired derelict log, extracted data. Data stored: Materials stockpile data. 03174_ Sub. Monowheel shoots sparks and powers down. 03179_ RA-OI9(z): "She is not going to be happy we haven't found any suitable candidates yet." Map ----- +----------------------------------------------------+ | ?????????????????????????????????????????????????? | | ?????????????????????????????????????????????????? | | ?????????????????????????????????????????????????? | | ?????????????????????????????????????????????????? | | ?????????????????????????????????????????????????? | | ?????????????????????????????????????????????????? | | ?????????????????????????????????????????????????? | | ?????????????????????????????????????????????????? | | ?????????????????????????????????????????????????? | | ?????????????????????????????????????????????????? | | ?????????????????????????????????????????????????? | | ?????????????????????????????????????????????????? | | ?????????????????????????????????????????????????? | | ?????????????????????????????????????????????????? | | ????????????????????" ???????????????????????????? | | ???????????????????#""?#?????????????????????????? | | ??????????????????? # ?????????????????????????? | | ??????????????????? ???????"##???????????????? | | ??????????????????? ?????? ##??????????????? | | ??????????????????? ????#"" ???????????????? | | ???????????????????# #????"""""????????????????? | | ???????????????##### ?????""" ????????????????? | | ???????????????# ""? ??### " ?????????????????? | | ??????????????## ??# ## ##????????????????? | | ??????????????# ?## ## #????????????????? | | ???????????????# ###@ # ##????????????????? | | ?????????????????# # #R ###??????????????? | | ?????????????????# ""R #??????????????? | | ????????????????# # "" #??????????????? | | ????????????????# ??## # ## #??????????????? | | ?????????????????????### ## ##?????????????? | | ???????????????????????## "" #?????????????? | | ??????????????????????####"" #?????????????? | | ???????????????????####"### #?????????????? | | ???????????????????#" """" #?????????????? | | ??????############## " " #?????????????? | | ## # ##"# """"# # ##?????????????? | | " " #### #??????????????? | | """" ##??# #??????????????? | | ????####### " ##### ##???# #??????????????? | | ??????????###" ##?####????# #??????????????? | | ??????????# " ####?????? ##?????????????? | | ?????????## " " ####??? #?????????????? | | ?????????# "" "" #??? #?????????????? | | ????????# ## #???# ###?????????????? | | ????? ?## ######" ####????????????? | | ???# ??## ## " " #????????????? | | ???# ### ?### " " #?????????????? | | ???? ##??## ?# " " #?????????????? | | ????? ?????##?# ## # " #??????????????? | +----------------------------------------------------+ Best States ------------- Heat Dissipation 25 Energy Generation 15 Energy Capacity 250 Matter Stores 300 Matter Capacity 300 Sight Range 16 Robot Scan Range 14 Terrain Scan Range 16 Terrain Scan Density 10 Resistance: KI 20 Resistance: TH 20 Resistance: EX 20 Resistance: EM 20 Resistance: I 20 Resistance: S 20 Resistance: P 20 Evasion (%) 44 Offensive Hacking 10 Item Schematics ----------------- None Robot Schematics ------------------ None Fabricated ------------ Nothing Alien Tech Used ----------------- None Achievements -------------- None Challenges ------------ None Game ------ Seed NullGravitonSaw Manual? 0 Play Time 00:48:46 Cumulative 29.8 hours Start 2024.07.13 @ 07:25:27 End 2024.07.13 @ 08:16:17 Sessions 1 Manual Loads 0 Difficulty Adventurer Special Mode None Game No. 19 Rogue 0 Adventurer 19 Explorer 0 Win Type - Total 0 Types 0/0/0/0/0/0/0/0/0 Lore% 23 Gallery% 35 Achievement% 22 Wizard Run 0 Options --------- Layout 2 ASCII 0 Keyboard 0 Movement Mouse Keybinds 0 Fullscreen 2 Font 20/SmallcapsGlow Map View 56x54 Zoom Use 0% Tactical HUD 1 Map Filters NONE Filters NONE Steam X RUN: 54998880-5b0b-47b5-be3f-23c61e711b17